fUST/lending_fUST_20260309
["ID","MTS","AMOUNT","RATE_DAILY","PERIOD"]
[408018284,1773031652253,-1549.60380903,2.463e-05,2]
[408018285,1773031652538,-2000.0,2.463e-05,2]
[408018286,1773031652789,-1450.39619097,2.463e-05,2]
[408018292,1773031746142,-5000.0,2.45e-05,2]
[408018293,1773031746163,-2891.68255429,2.475e-05,2]
[408018294,1773031746186,-300.0,2.499e-05,2]
[408018295,1773031746209,-5000.0,2.5e-05,2]
[408018296,1773031746229,-500.15518843,2.543e-05,2]
[408018297,1773031746249,-500.0,2.543e-05,2]
[408018298,1773031746268,-178.13157728,2.543e-05,2]
[408018439,1773031837940,-1208.7291331,2.517e-05,2]
[408018580,1773031841100,-86.78439318,2.517e-05,2]
[408018775,1773031843069,-1901.01210042,2.517e-05,2]
[408018776,1773031843143,-1803.4743733,2.517e-05,2]
[408018777,1773031843154,-300.0,2.542e-05,2]
[408018778,1773031843166,-500.0,2.543e-05,2]
[408018779,1773031843176,-500.0,2.543e-05,2]
[408018780,1773031843186,-239.88267225,2.643e-05,2]
[408018791,1773031846251,-260.11732775,2.643e-05,2]
[408018792,1773031846260,-300.0,2.72e-05,2]
[408018793,1773031846270,-300.0,2.72e-05,2]
[408018794,1773031846279,-300.0,2.72e-05,2]
[408018795,1773031846288,-300.0,2.72e-05,2]
[408018796,1773031846297,-300.0,2.72e-05,2]
[408018797,1773031846307,-300.0,2.72e-05,2]
[408018798,1773031846317,-300.0,2.72e-05,2]
[408018799,1773031846326,-300.0,2.72e-05,2]
[408018800,1773031846336,-300.0,2.72e-05,2]
[408018801,1773031846345,-300.0,2.72e-05,2]
[408018802,1773031846354,-300.0,2.72e-05,2]
[408018803,1773031846363,-300.0,2.72e-05,2]
[408018804,1773031846372,-300.0,2.72e-05,2]
[408018805,1773031846381,-300.0,2.72e-05,2]
[408018806,1773031846391,-300.0,2.72e-05,2]
[408018807,1773031846400,-600.0,2.72e-05,2]
[408018808,1773031846409,-420.0,2.796e-05,2]
[408018809,1773031846418,-720.0,2.992e-05,2]
[408018810,1773031846427,-587.0,3.075e-05,2]
[408018811,1773031846436,-1000.0,3.091e-05,2]
[408018812,1773031846445,-451.30122508,3.135e-05,2]
[408018813,1773031846454,-500.0,3.135e-05,2]
[408018814,1773031846463,-162.47328004,3.135e-05,2]
[408018815,1773031846473,-500.0,3.135e-05,2]
[408018816,1773031846482,-500.0,3.135e-05,2]
[408018817,1773031846491,-500.0,3.135e-05,2]
[408018818,1773031846500,-500.0,3.135e-05,2]
[408018819,1773031846510,-500.0,3.135e-05,2]
[408018820,1773031846519,-500.0,3.135e-05,2]
[408018821,1773031846529,-500.0,3.135e-05,2]
[408018822,1773031846543,-500.0,3.135e-05,2]
[408018823,1773031846552,-500.0,3.135e-05,2]
[408018824,1773031846562,-500.0,3.135e-05,2]
[408018825,1773031846572,-500.0,3.135e-05,2]
[408018826,1773031846583,-500.0,3.135e-05,2]
[408018827,1773031846593,-500.0,3.135e-05,2]
[408018828,1773031846604,-500.0,3.135e-05,2]
[408018829,1773031846614,-500.0,3.135e-05,2]
[408018830,1773031846624,-500.0,3.135e-05,2]
[408018831,1773031846633,-500.0,3.135e-05,2]
[408018832,1773031846643,-537.6845,3.135e-05,2]
[408018833,1773031846653,-174.61919141,3.135e-05,2]
[408018834,1773031846663,-2150.738,3.135e-05,2]
[408018835,1773031846673,-1000.0,3.191e-05,2]
[408018836,1773031846683,-2467.42162542,3.289e-05,2]
[408018859,1773032424591,-1035.51743509,2.987e-05,2]
[408018870,1773032816132,-5000.0,2.869e-05,2]
[408018871,1773032816152,-61.53838886,2.898e-05,2]
[408018885,1773033031912,-981.46614975,2.812e-05,2]
[408018886,1773033031923,-4018.53385025,2.812e-05,2]
[408018887,1773033031933,-2830.14416543,2.84e-05,2]
[408018888,1773033031942,-1200.0,2.911e-05,2]
[408018889,1773033031952,-307.90162355,2.913e-05,2]
[408018890,1773033031961,-210.490403,3.012e-05,2]
[408018891,1773033031971,-300.0,3.014e-05,2]
[408018892,1773033031980,-300.0,3.014e-05,2]
[408018893,1773033031990,-300.0,3.014e-05,2]
[408018894,1773033031999,-300.0,3.014e-05,2]
[408018895,1773033032008,-300.0,3.014e-05,2]
[408018896,1773033032017,-210.490403,3.017e-05,2]
[408018897,1773033032027,-2180.6563214,3.017e-05,2]
[408018898,1773033032036,-1920.06124619,3.289e-05,2]
[408018899,1773033032048,-2521.89218845,3.289e-05,2]
[408019419,1773033043185,-562.39315432,3.289e-05,2]
[408019430,1773033043278,-3728.55749532,3.289e-05,2]
[408019432,1773033043288,-420.0,3.315e-05,2]
[408019434,1773033043297,-500.0,3.353e-05,2]
[408019437,1773033043306,-500.0,3.353e-05,2]
[408019440,1773033043315,-500.0,3.353e-05,2]
[408019443,1773033043324,-500.0,3.353e-05,2]
[408019446,1773033043333,-500.0,3.353e-05,2]
[408019447,1773033043342,-7910.78608183,3.378e-05,2]
[408019458,1773033046036,-304.0618709,3.378e-05,2]
[408019464,1773033046186,-3545.25319606,3.378e-05,2]
[408019483,1773034172127,-1137.40939457,2.27e-05,2]
[408019500,1773034232065,-705.16704378,2.247e-05,2]
[408019501,1773034232075,-301.74359108,2.305e-05,2]
[408019502,1773034232084,-175.941698,2.387e-05,2]
[408019503,1773034232093,-175.941698,2.555e-05,2]
[408019504,1773034232102,-175.941698,2.722e-05,2]
[408019505,1773034232111,-175.941698,2.89e-05,2]
[408019506,1773034232120,-161.74001871,2.906e-05,2]
[408019507,1773034232128,-300.0,3.142e-05,2]
[408019508,1773034232137,-8098.30491447,3.143e-05,2]
[408019509,1773034232147,-306.98416743,3.143e-05,2]
[408019917,1773034246115,-272.7310009,3.143e-05,2]
[408019918,1773034246125,-192.14688431,3.143e-05,2]
[408019919,1773034246230,-212.69001709,3.143e-05,2]
[408019920,1773034246240,-2228.25998291,3.146e-05,2]
[408020005,1773035373146,-696.01276113,2.073e-05,2]
[408020006,1773035373169,-284.13932353,2.099e-05,2]
[408020029,1773035432258,-297.28605857,2.078e-05,2]
[408020031,1773035432269,-2650.48925445,2.078e-05,2]
[408020033,1773035432280,-1350.00739569,2.078e-05,2]
[408020035,1773035432292,-384.62322837,2.078e-05,2]
[408020113,1773035440821,-317.59406292,2.078e-05,2]
[408020115,1773035440831,-17.54688148,2.099e-05,2]
[408020117,1773035440840,-165.7347823,2.137e-05,2]
[408020119,1773035440849,-156.14371719,2.916e-05,2]
[408020121,1773035440860,-143.85628281,2.916e-05,2]
[408020123,1773035440869,-875.19573448,2.917e-05,2]
[408020476,1773035444564,-5352.49999837,2.917e-05,2]
[408020520,1773035446269,-1596.17234726,2.917e-05,2]
[408020528,1773035446329,-5262.86436391,2.917e-05,2]
[408020787,1773036027975,-1133.06300439,2.711e-05,2]
[408020788,1773036027988,-3866.93699561,2.711e-05,2]
[408020789,1773036028003,-303.49416753,2.724e-05,2]
[408020790,1773036028013,-829.56883686,2.737e-05,2]
[408020813,1773036332139,-5000.0,2.629e-05,2]
[408020814,1773036332163,-297.42428418,2.642e-05,2]
[408020815,1773036332186,-371.0,2.655e-05,2]
[408020816,1773036332208,-5000.0,2.656e-05,2]
[408020817,1773036332230,-7576.15909482,2.719e-05,2]
[408020819,1773036515270,311.12997052,2.001e-05,2]
[408020820,1773036569136,-551.14529123,2.612e-05,2]
[408020857,1773036632445,-300.0,2.612e-05,2]
[408020862,1773036632530,-1749.9988739,2.612e-05,2]
[408020864,1773036632542,-700.10330744,2.612e-05,2]
[408020997,1773036638593,-1341.25548051,2.612e-05,2]
[408021267,1773036643647,-357.49704692,2.612e-05,2]
[408021268,1773036643659,-2797.11431752,2.62e-05,2]
[408021269,1773036643704,-9827.33767613,2.62e-05,2]
[408021270,1773036643715,-500.0,2.623e-05,2]
[408021271,1773036643725,-500.0,2.623e-05,2]
[408021272,1773036643735,-500.0,2.623e-05,2]
[408021273,1773036643744,-371.0,2.637e-05,2]
[408021274,1773036643753,-5000.0,2.638e-05,2]
[408021275,1773036643762,-300.0,2.645e-05,2]
[408021276,1773036643772,-10200.69071045,2.646e-05,2]
[408021277,1773036643782,-1266.46,2.646e-05,2]
[408021291,1773036646686,-7405.92311139,2.646e-05,2]
[408021293,1773036646697,-1257.42635663,2.646e-05,2]
[408021295,1773036646746,-26986.05703888,2.646e-05,2]
[408021296,1773036646768,-12695.60021518,2.646e-05,2]
[408021297,1773036646805,-3565.69888033,2.646e-05,2]
[408021298,1773036646817,-160766.37431,2.646e-05,2]
[408021303,1773036841091,514.24,2.001e-05,2]
[408021413,1773037121383,218.8703573,1.542e-05,2]
[408021414,1773037202533,187.62,2e-05,2]
[408021429,1773037646983,3927.7992112,1.305e-05,2]
[408021430,1773037757648,-5000.0,2.071e-05,2]
[408021431,1773037757669,-5000.0,2.092e-05,2]
[408021432,1773037757690,-300.0,2.101e-05,2]
[408021433,1773037757710,-314.82524582,2.103e-05,2]
[408021434,1773037757730,-1200.0,2.133e-05,2]
[408021435,1773037757749,-500.0,2.14e-05,2]
[408021436,1773037757769,-500.0,2.14e-05,2]
[408021437,1773037758137,-500.0,2.14e-05,2]
[408021438,1773037758162,-500.0,2.14e-05,2]
[408021439,1773037758184,-500.0,2.14e-05,2]
[408021440,1773037758204,-174.98383232,2.142e-05,2]
[408021441,1773037758223,-300.0,2.166e-05,2]
[408021442,1773037758243,-300.0,2.166e-05,2]
[408021443,1773037758263,-139.06748868,2.166e-05,2]
[408021466,1773037831619,-514.1776056,2.123e-05,2]
[408021469,1773037831629,-500.0,2.14e-05,2]
[408021471,1773037831638,-268.19729595,2.14e-05,2]
[408021473,1773037831647,-422.29666469,2.14e-05,2]
[408021475,1773037831658,-17.4518433,2.14e-05,2]
[408021477,1773037831667,-1657.54198051,2.144e-05,2]
[408021479,1773037831679,-619.84912104,2.144e-05,2]
[408021523,1773037837772,-561.49783545,2.144e-05,2]
[408021525,1773037837781,-187.62,2.2e-05,2]
[408021527,1773037837790,-1200.0,2.241e-05,2]
[408021529,1773037837800,-300.0,2.242e-05,2]
[408021531,1773037837809,-300.0,2.242e-05,2]
[408021533,1773037837818,-300.0,2.242e-05,2]
[408021535,1773037837827,-300.0,2.242e-05,2]
[408021537,1773037837836,-300.0,2.243e-05,2]
[408021539,1773037837845,-300.0,2.243e-05,2]
[408021541,1773037837854,-300.0,2.243e-05,2]
[408021543,1773037837863,-300.0,2.243e-05,2]
[408021545,1773037837873,-300.0,2.243e-05,2]
[408021547,1773037837882,-300.0,2.243e-05,2]
[408021549,1773037837891,-300.0,2.243e-05,2]
[408021551,1773037837902,-300.0,2.243e-05,2]
[408021553,1773037837912,-300.0,2.243e-05,2]
[408021555,1773037837921,-300.0,2.243e-05,2]
[408021557,1773037837930,-300.0,2.243e-05,2]
[408021559,1773037837938,-300.0,2.243e-05,2]
[408021561,1773037837947,-300.0,2.243e-05,2]
[408021563,1773037837956,-300.0,2.243e-05,2]
[408021565,1773037837965,-300.0,2.243e-05,2]
[408021567,1773037837974,-1680.0,2.465e-05,2]
[408021569,1773037837983,-284.0,2.466e-05,2]
[408021571,1773037837993,-420.0,2.466e-05,2]
[408021573,1773037838002,-16355.2022256,2.5e-05,2]
[408021575,1773037838012,-500.15518843,2.523e-05,2]
[408021577,1773037838020,-500.31579848,2.523e-05,2]
[408021579,1773037838030,-384.00904845,2.523e-05,2]
[408021582,1773037838042,-500.0,2.523e-05,2]
[408021584,1773037838055,-500.0,2.523e-05,2]
[408021587,1773037838067,-500.0,2.523e-05,2]
[408021589,1773037838080,-600.0,2.572e-05,2]
[408021591,1773037838090,-1204.0346894,2.62e-05,2]
[408021593,1773037838099,-227.91609775,2.62e-05,2]
[408021596,1773037838112,-500.45363369,2.623e-05,2]
[408021598,1773037838123,-4254.4154593,2.653e-05,2]
[408021600,1773037838135,-3149.0644454,2.653e-05,2]
[408021602,1773037838145,-852.1892377,2.653e-05,2]
[408021605,1773037838157,-7079.5253804,2.653e-05,2]
[408021607,1773037838168,-2368.38119,2.653e-05,2]
[408021609,1773037838180,-151.0,2.698e-05,2]
[408021612,1773037838192,-587.0,2.713e-05,2]
[408021614,1773037838210,-77.51714243,2.719e-05,2]
[408021616,1773037838222,-720.0,2.829e-05,2]
[408021619,1773037838234,-500.0,2.873e-05,2]
[408021621,1773037838248,-500.54685724,2.873e-05,2]
[408021623,1773037838258,-500.0,2.873e-05,2]
[408021625,1773037838270,-500.0,2.873e-05,2]
[408021627,1773037838282,-500.0,2.873e-05,2]
[408021629,1773037838292,-22561.19597087,2.893e-05,2]
[408021632,1773037838306,-3378.99629453,2.893e-05,2]
[408021634,1773037838318,-151.0,2.893e-05,2]
[408021637,1773037838330,-726.4781581,2.898e-05,2]
[408021639,1773037838341,-756.11303731,2.917e-05,2]
[408021641,1773037838356,-2438.27032962,2.917e-05,2]
[408021644,1773037838367,-823.0,2.984e-05,2]
[408021646,1773037838376,-1579.6556319,2.99e-05,2]
[408021648,1773037838387,-352.4688141,3.065e-05,2]
[408021650,1773037838397,-1000.0,3.071e-05,2]
[408021652,1773037838409,-1000.0,3.071e-05,2]
[408021654,1773037838420,-300.0,3.1e-05,2]
[408021657,1773037838431,-864.0,3.112e-05,2]
[408021659,1773037838444,-17586.88233679,3.146e-05,2]
[408021661,1773037838455,-151.0,3.146e-05,2]
[408021664,1773037838467,-401.63336176,3.2e-05,2]
[408021666,1773037838478,-500.0,3.208e-05,2]
[408021668,1773037838491,-162.380719,3.208e-05,2]
[408021670,1773037838503,-500.0,3.208e-05,2]
[408021673,1773037838516,-519.91342999,3.208e-05,2]
[408021675,1773037838526,-500.0,3.208e-05,2]
[408021677,1773037838536,-500.0,3.208e-05,2]
[408021679,1773037838546,-500.0,3.208e-05,2]
[408021681,1773037838556,-1957.856,3.208e-05,2]
[408021683,1773037838568,-500.0,3.208e-05,2]
[408021685,1773037838579,-500.0,3.208e-05,2]
[408021688,1773037838591,-500.0,3.208e-05,2]
[408021690,1773037838603,-250.0,3.208e-05,2]
[408021692,1773037838614,-500.0,3.208e-05,2]
[408021694,1773037838624,-500.0,3.208e-05,2]
[408021696,1773037838634,-500.0,3.208e-05,2]
[408021699,1773037838645,-500.0,3.208e-05,2]
[408021701,1773037838656,-500.0,3.208e-05,2]
[408021703,1773037838667,-445.202766,3.208e-05,2]
[408021705,1773037838677,-500.0,3.208e-05,2]
[408021707,1773037838687,-500.0,3.208e-05,2]
[408021710,1773037838697,-500.0,3.208e-05,2]
[408021712,1773037838707,-174.61919141,3.208e-05,2]
[408021714,1773037838718,-500.0,3.208e-05,2]
[408021716,1773037838730,-500.0,3.208e-05,2]
[408021719,1773037838745,-500.0,3.208e-05,2]
[408021721,1773037838756,-162.380719,3.208e-05,2]
[408021723,1773037838766,-250.0,3.208e-05,2]
[408021725,1773037838778,-250.0,3.208e-05,2]
[408021727,1773037838789,-213.8379424,3.208e-05,2]
[408021730,1773037838799,-2150.738,3.208e-05,2]
[408021732,1773037838810,-537.6845,3.208e-05,2]
[408021734,1773037838821,-184.765634,3.235e-05,2]
[408021736,1773037838832,-949.2884027,3.235e-05,2]
[408021738,1773037838842,-702.651254,3.235e-05,2]
[408021740,1773037838852,-5788.0392544,3.26e-05,2]
[408021742,1773037838863,-2256.394,3.263e-05,2]
[408021745,1773037838879,-1391.0,3.263e-05,2]
[408021747,1773037838890,-639.0,3.263e-05,2]
[408021749,1773037838901,-732.0,3.263e-05,2]
[408021751,1773037838915,-435.0,3.263e-05,2]
[408021753,1773037838926,-2030.296672,3.263e-05,2]
[408021755,1773037838936,-1152.0,3.283e-05,2]
[408021757,1773037838947,-500.0,3.3e-05,2]
[408021760,1773037838957,-2105.41764886,3.318e-05,2]
[408021762,1773037838967,-299.734,3.329e-05,2]
[408021764,1773037838977,-1291.4861257,3.342e-05,2]
[408021766,1773037838988,-211.8148733,3.365e-05,2]
[408021768,1773037838998,-156.7826868,3.365e-05,2]
[408021770,1773037839008,-2183.31810187,3.373e-05,2]
[408021773,1773037839019,-814.93450853,3.405e-05,2]
[408021775,1773037839029,-800.0,3.415e-05,2]
[408021777,1773037839040,-1000.0,3.421e-05,2]
[408021779,1773037839050,-991.20152221,3.421e-05,2]
[408021781,1773037839061,-1000.0,3.421e-05,2]
[408021783,1773037839071,-1000.0,3.421e-05,2]
[408021785,1773037839081,-1000.0,3.423e-05,2]
[408021788,1773037839092,-2264.10087164,3.428e-05,2]
[408021790,1773037839102,-182.23409198,3.439e-05,2]
[408021792,1773037839113,-338.0,3.439e-05,2]
[408021794,1773037839124,-338.0,3.439e-05,2]
[408021796,1773037839135,-338.0,3.439e-05,2]
[408021798,1773037839146,-338.0,3.439e-05,2]
[408021800,1773037839158,-338.0,3.439e-05,2]
[408021803,1773037839168,-338.0,3.439e-05,2]
[408021805,1773037839179,-338.0,3.439e-05,2]
[408021807,1773037839189,-338.0,3.439e-05,2]
[408021809,1773037839202,-338.0,3.439e-05,2]
[408021811,1773037839213,-338.0,3.439e-05,2]
[408021813,1773037839224,-338.0,3.439e-05,2]
[408021815,1773037839234,-338.0,3.439e-05,2]
[408021818,1773037839245,-338.0,3.439e-05,2]
[408021820,1773037839256,-338.0,3.439e-05,2]
[408021822,1773037839267,-338.0,3.439e-05,2]
[408021824,1773037839279,-338.0,3.439e-05,2]
[408021826,1773037839289,-338.0,3.439e-05,2]
[408021828,1773037839299,-338.0,3.439e-05,2]
[408021830,1773037839309,-338.0,3.439e-05,2]
[408021833,1773037839320,-338.0,3.439e-05,2]
[408021835,1773037839331,-338.0,3.439e-05,2]
[408021837,1773037839342,-338.0,3.439e-05,2]
[408021839,1773037839352,-338.0,3.439e-05,2]
[408021841,1773037839363,-338.0,3.439e-05,2]
[408021843,1773037839375,-338.0,3.439e-05,2]
[408021846,1773037839386,-338.0,3.439e-05,2]
[408021848,1773037839397,-338.0,3.439e-05,2]
[408021850,1773037839408,-338.0,3.439e-05,2]
[408021852,1773037839419,-338.0,3.439e-05,2]
[408021854,1773037839430,-338.0,3.439e-05,2]
[408021856,1773037839440,-338.0,3.439e-05,2]
[408021858,1773037839451,-338.0,3.439e-05,2]
[408021861,1773037839462,-338.0,3.439e-05,2]
[408021863,1773037839473,-338.0,3.439e-05,2]
[408021865,1773037839483,-338.0,3.439e-05,2]
[408021867,1773037839494,-338.0,3.439e-05,2]
[408021869,1773037839504,-338.0,3.439e-05,2]
[408021871,1773037839515,-338.0,3.439e-05,2]
[408021874,1773037839527,-338.0,3.439e-05,2]
[408021877,1773037839538,-234.1120422,3.439e-05,2]
[408021879,1773037839548,-2193.53822804,3.483e-05,2]
[408021881,1773037839558,-500.0,3.5e-05,2]
[408021883,1773037839569,-800.0,3.549e-05,2]
[408021885,1773037839580,-1278.15278785,3.577e-05,2]
[408021887,1773037839590,-500.0,3.593e-05,2]
[408021890,1773037839601,-406.9258917,3.593e-05,2]
[408021893,1773037839611,-500.0,3.593e-05,2]
[408021895,1773037839622,-500.0,3.593e-05,2]
[408021897,1773037839631,-1613.0,3.611e-05,2]
[408021899,1773037839642,-120606.61487978,3.613e-05,2]
[408021901,1773037839653,-1500.0,3.618e-05,2]
[408021903,1773037839663,-1500.0,3.618e-05,2]
[408021905,1773037839674,-893.362,3.666e-05,2]
[408021907,1773037839684,-190.139,3.699e-05,2]
[408021910,1773037839695,-500.0,3.7e-05,2]
[408021912,1773037839705,-461.67526834,3.756e-05,2]
[408021914,1773037839716,-181.08010149,3.756e-05,2]
[408021916,1773037839726,-168.3888056,3.756e-05,2]
[408021918,1773037839737,-2230.315306,3.756e-05,2]
[408021920,1773037839747,-557.5788265,3.756e-05,2]
[408021922,1773037839758,-1000.0,3.766e-05,2]
[408021924,1773037839768,-244.0,3.766e-05,2]
[408021926,1773037839779,-500.0,3.9e-05,2]
[408021929,1773037839790,-1500.0,3.968e-05,2]
[408021931,1773037839801,-1500.0,3.968e-05,2]
[408021933,1773037839812,-1500.0,3.968e-05,2]
[408021935,1773037839823,-224.0,3.972e-05,2]
[408021937,1773037839834,-652.46108487,4e-05,2]
[408021939,1773037839845,-1000.0,4.1e-05,2]
[408021941,1773037839856,-371.49379006,4.103e-05,2]
[408021943,1773037839866,-1000.0,4.141e-05,2]
[408021946,1773037839877,-1000.0,4.141e-05,2]
[408021948,1773037839888,-1000.0,4.141e-05,2]
[408021950,1773037839899,-1000.0,4.142e-05,2]
[408021952,1773037839910,-492.0,4.142e-05,2]
[408021954,1773037839920,-667.02676826,4.166e-05,2]
[408021956,1773037839931,-2000.0,4.166e-05,2]
[408021958,1773037839941,-2000.0,4.3e-05,2]
[408021961,1773037839952,-478.75725327,4.304e-05,2]
[408021963,1773037839963,-187.78006525,4.304e-05,2]
[408021965,1773037839973,-174.61919141,4.304e-05,2]
[408021967,1773037839984,-2312.83697232,4.304e-05,2]
[408021969,1773037839995,-578.20924308,4.304e-05,2]
[408021971,1773037840005,-221.48005241,4.305e-05,2]
[408021974,1773037840016,-2000.0,4.516e-05,2]
[408021976,1773037840026,-2000.0,4.516e-05,2]
[408021978,1773037840037,-344.74450135,4.516e-05,2]
[408021980,1773037840047,-1000.0,4.557e-05,2]
[408021982,1773037840058,-791.0,4.557e-05,2]
[408021984,1773037840068,-168.3888056,4.577e-05,2]
[408021986,1773037840079,-1500.0,4.688e-05,2]
[408021988,1773037840089,-1500.0,4.688e-05,2]
[408021991,1773037840099,-1500.0,4.688e-05,2]
[408021993,1773037840110,-604.44542318,4.714e-05,2]
[408021994,1773037840120,-496.47127164,4.852e-05,2]
[408021995,1773037840131,-194.72792766,4.852e-05,2]
[408021996,1773037840142,-181.08010149,4.852e-05,2]
[408021997,1773037840153,-2398.4119403,4.852e-05,2]
[408021998,1773037840164,-599.60298507,4.852e-05,2]
[408021999,1773037840174,-153.24,5e-05,2]
[408022000,1773037840185,-387.86113115,5e-05,2]
[408022001,1773037840196,-189.78,5e-05,2]
[408022002,1773037840208,-161.19,5e-05,2]
[408022003,1773037840219,-161.11,5e-05,2]
[408022004,1773037840230,-191.45,5e-05,2]
[408022005,1773037840241,-250.08846474,5e-05,2]
[408022006,1773037840251,-4303.07206857,5e-05,2]
[408022007,1773037840262,-8799.96868309,5e-05,2]
[408022008,1773037840273,-10902.12194728,5e-05,2]
[408022009,1773037840285,-9851.04531515,5e-05,2]
[408022011,1773037840295,-10602.88945901,5e-05,2]
[408022012,1773037840305,-1046.93218816,5e-05,2]
[408022013,1773037840316,-2591.20882477,5e-05,2]
[408022014,1773037840327,-2673.25114902,5e-05,2]
[408022015,1773037840339,-3043.72152624,5e-05,2]
[408022016,1773037840350,-2417.79601255,5e-05,2]
[408022017,1773037840360,-745.84669795,5e-05,2]
[408022019,1773037840371,-1698.23472205,5e-05,2]
[408022020,1773037840381,-2003.12767901,5e-05,2]
[408022022,1773037840392,-508.46286311,5e-05,2]
[408022024,1773037840403,-189.68423132,5e-05,2]
[408022026,1773037840414,-500.0,5e-05,2]
[408022028,1773037840425,-500.0,5e-05,2]
[408022030,1773037840435,-500.0,5e-05,2]
[408022032,1773037840446,-217.07558935,5e-05,2]
[408022034,1773037840457,-619.49175888,5e-05,2]
[408022037,1773037840469,-500.0,5e-05,2]
[408022039,1773037840480,-500.0,5e-05,2]
[408022041,1773037840490,-500.0,5e-05,2]
[408022043,1773037840500,-199.93783645,5e-05,2]
[408022045,1773037840510,-500.0,5e-05,2]
[408022047,1773037840521,-500.0,5e-05,2]
[408022049,1773037840531,-500.0,5e-05,2]
[408022051,1773037840542,-500.0,5e-05,2]
[408022054,1773037840552,-500.0,5e-05,2]
[408022056,1773037840562,-500.0,5e-05,2]
[408022058,1773037840572,-500.0,5e-05,2]
[408022060,1773037840582,-500.0,5e-05,2]
[408022062,1773037840593,-500.0,5e-05,2]
[408022064,1773037840603,-500.0,5e-05,2]
[408022066,1773037840613,-500.0,5e-05,2]
[408022068,1773037840623,-500.0,5e-05,2]
[408022071,1773037840634,-500.0,5e-05,2]
[408022073,1773037840643,-500.0,5e-05,2]
[408022075,1773037840653,-500.0,5e-05,2]
[408022077,1773037840663,-500.0,5e-05,2]
[408022079,1773037840673,-500.0,5e-05,2]
[408022081,1773037840683,-500.0,5e-05,2]
[408022083,1773037840694,-500.0,5e-05,2]
[408022085,1773037840704,-500.0,5e-05,2]
[408022088,1773037840715,-500.0,5e-05,2]
[408022090,1773037840724,-500.0,5e-05,2]
[408022092,1773037840734,-500.0,5e-05,2]
[408022094,1773037840745,-500.0,5e-05,2]
[408022096,1773037840755,-500.0,5e-05,2]
[408022098,1773037840765,-500.0,5e-05,2]
[408022100,1773037840775,-500.0,5e-05,2]
[408022102,1773037840785,-500.0,5e-05,2]
[408022104,1773037840796,-459.94664876,5e-05,2]
[408022107,1773037840806,-500.0,5e-05,2]
[408022109,1773037840817,-500.0,5e-05,2]
[408022111,1773037840827,-500.0,5e-05,2]
[408022113,1773037840837,-500.0,5e-05,2]
[408022115,1773037840848,-500.0,5e-05,2]
[408022117,1773037840858,-500.0,5e-05,2]
[408022120,1773037840868,-500.0,5e-05,2]
[408022122,1773037840878,-500.0,5e-05,2]
[408022124,1773037840888,-500.0,5e-05,2]
[408022126,1773037840898,-500.0,5e-05,2]
[408022128,1773037840908,-500.0,5e-05,2]
[408022130,1773037840918,-500.0,5e-05,2]
[408022133,1773037840931,-500.0,5e-05,2]
[408022135,1773037840942,-500.0,5e-05,2]
[408022137,1773037840953,-500.0,5e-05,2]
[408022139,1773037840964,-11324.39822764,5e-05,2]
[408022141,1773037840975,-1000.0,5.012e-05,2]
[408022143,1773037840986,-1000.0,5.012e-05,2]
[408022146,1773037840996,-500.0,5.064e-05,2]
[408022148,1773037841007,-2500.0,5.064e-05,2]
[408022150,1773037841017,-2000.0,5.236e-05,2]
[408022152,1773037841027,-2000.0,5.236e-05,2]
[408022154,1773037841037,-2000.0,5.236e-05,2]
[408022156,1773037841049,-186.6573915,5.275e-05,2]
[408022158,1773037841060,-201.93286099,5.4e-05,2]
[408022161,1773037841071,-514.84070869,5.4e-05,2]
[408022163,1773037841082,-187.78006525,5.4e-05,2]
[408022165,1773037841092,-2487.15318209,5.4e-05,2]
[408022167,1773037841102,-621.78829552,5.4e-05,2]
[408022169,1773037841113,-11406.87300567,5.414e-05,2]
[408022171,1773037841123,-500.0,5.479e-05,2]
[408022172,1773037841134,-500.0,5.479e-05,2]
[408022173,1773037841144,-500.0,5.479e-05,2]
[408022174,1773037841155,-197.9068086,5.479e-05,2]
[408022175,1773037841165,-500.0,5.479e-05,2]
[408022176,1773037841176,-500.0,5.479e-05,2]
[408022177,1773037841186,-500.0,5.479e-05,2]